Workbook

Sheet Analysis
B1: SUPPORTIVE HOUSING OPPORTUNITIES PLANNER (SHOP): USING SUPPORTIVE HOUSING TO END CHRONIC HOMELESSNESS | Z1: 0.3
E2: Click Cell Below for Drop-down List | Z2: 0.5
B3: CoC or State Name: | E3: AK - Alaska (state) | Z3: 0.8
Z4: 1
B5: INPUTS | M5: IMPACTS
V6: 2017 | W6: 2018 | X6: 2019
B7: A | C7: 100 | D7: = | E7: Individuals experiencing chronic homelessness (Default: Nationally available 2016 Point-In-Time Count data. Or enter most accurate data for beginning of 2017.) | M7: 1 | N7: Number of individuals experiencing chronic homelessness at beginning of year | V7: =$C$7 -> 100 | W7: =V24 -> 90.3 | X7: =W24 -> 77.6
M8: 2 | N8: Number newly entering or not counted in Point-in-Time count or other data used | V8: =INT(V7*$C$9) -> 30 | W8: =INT(W7*$C$9) -> 27 | X8: 23
B9: B | C9: 0.3 | D9: = | E9: Annualization factor (based upon projections for inflow and undercount) | M9: 3 | N9: Projected annual need | V9: =SUM(V7:V8) -> 130 | W9: =SUM(W7:W8) -> 117.3 | X9: 100.6
U10: % | V10: # | W10: # | X10: #
B11: C | C11: =VLOOKUP(E3,Data!B2:K460,4,FALSE) -> 544 | D11: = | E11: Total inventory of supportive housing units for households without children (Default: Nationally available 2016 Housing Inventory Count [HIC] data. Or enter most accurate data for beginning of 2017.) | M11: 4 | N11: Total available supportive housing inventory for households without children | V11: =$C$11 -> 544 | W11: =V11+V21 -> 544 | X11: =W11+W21 -> 544
M12: 5 | N12: Supportive housing units dedicated to chronic homelessness | U12: =$C$15 -> 0.2738970588 | V12: =V11*$U$12 -> 149 | W12: =(W11)*$U$12 -> 149 | X12: =(X11-V21)*$U$12 -> 149
B13: D | C13: 0.15 | D13: = | E13: % of supportive housing units that turnover annually (Default: 15%. Adjust based on local data, as needed.) | M13: 6 | N13: Annual turnover of dedicated supportive housing units | U13: =$C$13 -> 0.15 | V13: =INT(V12*$U$13) -> 22 | W13: =INT(W12*$U$13) -> 22 | X13: =INT(X12*$U$13) -> 22 | Z13: =IF(AND(C17<>0.3,C17<>0.5,C17<>0.8,C17<>1),C17,"") ->  | AA13: =IF($Z$13<>"",V24,"") ->  | AB13: =IF($Z$13<>"",W24,"") ->  | AC13: =IF($Z$13<>"",X24,"") ->  | AD13: =IF($Z$13<>"",#REF!,"") -> 
B15: E | C15: =VLOOKUP(E3,Data!B2:K460,8,FALSE) -> 0.2738970588 | D15: = | E15: % of supportive housing dedicated to chronic homelessness (Default: Nationally-available 2016 HIC data. Or enter most accurate data for beginning of 2017.) | M15: 7 | N15: Total non-dedicated supportive housing for households without children | V15: =V$11-V12 -> 395 | W15: =W$11-W12 -> 395 | X15: =X$11-X12 -> 395
M16: 8 | N16: Annual number of non-dedicated supportive housing units that will turnover | U16: =$C$13 -> 0.15 | V16: =INT(V15*$U$16) -> 59 | W16: =INT(W15*$U$16) -> 59 | X16: =INT(X15*$U$16) -> 59
B17: F | C17: 0.3 | D17: = | E17: % of non-dedicated supportive housing prioritizing people experiencing chronic homelessness | M17: 9 | N17: Non-dedicated supportive housing turnover units prioritized for chronic homelessness | U17: =$C$17 -> 0.3 | V17: =V16*$U$17 -> 17.7 | W17: =W16*$U$17 -> 17.7 | X17: =X16*$U$17 -> 17.7
B19: G | C19: 0 | D19: = | E19: Newly created supportive housing units to become available in 2017 | M19: 10 | N19: Chronically homeless individuals housed through dedicated turnover supportive housing | V19: =V13 -> 22 | W19: =W13 -> 22 | X19: =X13 -> 22
M20: 11 | N20: Chronically homeless individuals housed through prioritized turnover supportive housing | V20: =V17 -> 17.7 | W20: =W17 -> 17.7 | X20: 17.7
B21: H | C21: 0 | D21: = | E21: Newly created supportive housing units to become available in 2018 | M21: 12 | N21: Chronically homeless individuals housed through newly created supportive housing | V21: =$C$19 -> 0 | W21: =$C$21 -> 0 | X21: =$C$23 -> 0
M22: 13 | N22: Total number of individuals experiencing chronic homelessness housed | V22: =SUM(V19:V21) -> 39.7 | W22: =SUM(W19:W21) -> 39.7 | X22: =SUM(X19:X21) -> 39.7
B23: I | C23: 0 | D23: = | E23: Newly created supportive housing units to become available in 2019
M24: 14 | N24: Number of individuals experiencing chronic homelessness at year-end | V24: =IF($V9-V22>0,V9-V22,0) -> 90.3 | W24: =IF(W9-W22>0,W9-W22,0) -> 77.6 | X24: =IF(X9-X22>0,X9-X22,0) -> 60.9
M26: 15 | N26: Percent change since end of 2017 | W26: =(W24-$V$24)/$V$24 -> -0.1406423034 | X26: =(X24-$V$24)/$V$24 -> -0.3255813953
B27: For best printing layout, use landscape orientation and 'Fit to Page' or 'Custom Scale' to 55%.

Sheet Data
A1: CoC Number | B1: State Name - CoC | C1: Chronically Homeless Individuals in 2016 PIT | D1: Chronically Homeless Individuals in 2015 PIT | E1: Total PSH Beds for Households without Children 2016 | F1: Total PSH Units for Households without Children 2015 | G1: Total PSH Beds Dedicated to Chronic Homelessness 2016 | H1: Total PSH Units Dedicated to Chronic Homelessness 2015 | I1: Estimated Percentage of Single Adult PSH Units Dedicated to Chronic Homeless 2016 | J1: Estimated Percentage of Single Adult PSH Units Dedicated to Chronic Homeless 2015 | K1: Percent Change In Estimated Percentage of Single Adult PSH Units Dedicated to Chronic Homelessness from 2015 to 2016
A2: AK | B2: AK - Alaska (state) | C2: =SUM(C3:C4) -> 112 | D2: 182 | E2: =SUM(E3:E4) -> 544 | F2: 521 | G2: =SUM(G3:G4) -> 149 | H2: 232 | I2: =G2/E2 -> 0.2738970588 | J2: =H2/F2 -> 0.4452975048 | K2: =I2-J2 -> -0.171400446
A3: AK-500 | B3: AK - Anchorage CoC | C3: 48 | D3: 106 | E3: 350 | F3: 324 | G3: 90 | H3: 175 | I3: =G3/E3 -> 0.2571428571 | J3: =H3/F3 -> 0.5401234568 | K3: =I3-J3 -> -0.2829805996
A4: AK-501 | B4: AK - Alaska Balance of State CoC | C4: 64 | D4: 76 | E4: 194 | F4: 197 | G4: 59 | H4: 57 | I4: 0.3041237113 | J4: 0.2893401015 | K4: 0.01478360982
A5: AL | B5: AL - Alabama (state) | C5: =SUM(C6:C13) -> 390 | D5: 557 | E5: =SUM(E6:E13) -> 2054 | F5: 1788 | G5: =SUM(G6:G13) -> 938 | H5: 554 | I5: 0.4566699124 | J5: 0.3098434004 | K5: 0.1468265119
A6: AL-500 | B6: AL - Birmingham/Jefferson, St. Clair, Shelby Counties CoC | C6: 92 | D6: 239 | E6: 720 | F6: 726 | G6: 395 | H6: 273 | I6: 0.5486111111 | J6: 0.3760330579 | K6: 0.1725780533
A7: AL-501 | B7: AL - Mobile City & County/Baldwin County CoC | C7: 80 | D7: 92 | E7: 198 | F7: 186 | G7: 88 | H7: 112 | I7: 0.4444444444 | J7: 0.6021505376 | K7: -0.1577060932
A8: AL-502 | B8: AL - Florence/Northwest Alabama CoC | C8: 32 | D8: 18 | E8: 36 | F8: 56 | G8: 0 | H8: 52 | I8: 0 | J8: 0.9285714286 | K8: -0.9285714286
A9: AL-503 | B9: AL - Huntsville/North Alabama CoC | C9: 100 | D9: 117 | E9: 228 | F9: 198 | G9: 78 | H9: 93 | I9: 0.3421052632 | J9: 0.4696969697 | K9: -0.1275917065
A10: AL-504 | B10: AL - Montgomery City & County CoC | C10: 28 | D10: 24 | E10: 341 | F10: 308 | G10: 228 | H10: 0 | I10: 0.6686217009 | J10: 0 | K10: 0.6686217009
A11: AL-505* | B11: AL - Gadsden/Northeast Alabama CoC | C11: 22 | D11: 2 | E11: 0 | F11: 12 | G11: 0 | H11: 0 | J11: 0
A12: AL-506 | B12: AL - Tuscaloosa City & County CoC | C12: 1 | D12: 40 | E12: 290 | F12: 258 | G12: 136 | H12: 0 | I12: 0.4689655172 | J12: 0 | K12: 0.4689655172
A13: AL-507 | B13: AL - Alabama Balance of State CoC | C13: 35 | D13: 25 | E13: 241 | F13: 44 | G13: 13 | H13: 24 | I13: 0.05394190871 | J13: 0.5454545455 | K13: -0.4915126367
A14: AR | B14: AR - Arkansas (state) | C14: =SUM(C15:C21) -> 417 | D14: 524 | E14: =SUM(E15:E21) -> 758 | F14: 379 | G14: =SUM(G15:G21) -> 189 | H14: 0 | I14: 0.2493403694 | J14: 0 | K14: 0.2493403694
A15: AR-500 | B15: AR - Little Rock/Central Arkansas CoC | C15: 206 | D15: 215 | E15: 619 | F15: 248 | G15: 79 | H15: 0 | I15: 0.1276252019 | J15: 0 | K15: 0.1276252019
A16: AR-501 | B16: AR - Fayetteville/Northwest Arkansas CoC | C16: 76 | D16: 118 | E16: 106 | F16: 98 | G16: 106 | H16: 0 | I16: 1 | J16: 0 | K16: 1
A17: AR-503 | B17: AR - Arkansas Balance of State CoC | C17: 81 | D17: 91 | E17: 21 | F17: 21 | G17: 4 | H17: 0 | I17: 0.1904761905 | J17: 0 | K17: 0.1904761905
A18: AR-504* | B18: AR- Delta Hills CoC | C18: 0 | D18: 0 | E18: 0 | F18: 0 | G18: 0 | H18: 0
A19: AR-505 | B19: AR - Southeast Arkansas | C19: 1 | D19: 2 | E19: 12 | F19: 12 | G19: 0 | H19: 0 | I19: 0 | J19: 0 | K19: 0
A20: AR-508* | B20: AR - Old Fort Homeless Coalition | C20: 48 | D20: 90 | E20: 0 | F20: 0 | G20: 0 | H20: 0
A21: AR-512* | B21: AR - Boone, Baxter, Marion, Newton Counties CoC | C21: 5 | D21: 8 | E21: 0 | F21: 0 | G21: 0 | H21: 0
A22: AZ | B22: AZ - Arizona (state) | C22: =SUM(C23:C25) -> 1327 | D22: 1246 | E22: =SUM(E23:E25) -> 4979 | F22: 4680 | G22: =SUM(G23:G25) -> 976 | H22: 1207 | I22: 0.1960232979 | J22: 0.2579059829 | K22: -0.06188268506
A23: AZ-500 | B23: AZ - Arizona Balance of State CoC | C23: 407 | D23: 475 | E23: 559 | F23: 253 | G23: 91 | H23: 106 | I23: 0.1627906977 | J23: 0.418972332 | K23: -0.2561816343
A24: AZ-501 | B24: AZ - Tucson/Pima County CoC | C24: 211 | D24: 328 | E24: 1182 | F24: 1168 | G24: 94 | H24: 182 | I24: 0.07952622673 | J24: 0.1558219178 | K24: -0.07629569107
A25: AZ-502 | B25: AZ - Phoenix/Mesa/Maricopa County Regional CoC | C25: 709 | D25: 443 | E25: 3238 | F25: 3259 | G25: 791 | H25: 919 | I25: 0.2442865967 | J25: 0.28198834 | K25: -0.03770174332
A26: CA | B26: CA - California (state) | C26: =SUM(C27:C69) -> 29802 | D26: 29178 | E26: =SUM(E27:E69) -> 38042 | F26: 33873 | G26: =SUM(G27:G69) -> 14460 | H26: 15590 | I26: 0.3801061984 | J26: 0.4602485756 | K26: -0.08014237715
A27: CA-500 | B27: CA - San Jose/Santa Clara City & County CoC | C27: 2095 | D27: 2169 | E27: 1512 | F27: 1572 | G27: 1206 | H27: 1570 | I27: 0.7976190476 | J27: 0.9987277354 | K27: -0.2011086877
A28: CA-501 | B28: CA - San Francisco CoC | C28: 1805 | D28: 1574 | E28: 5687 | F28: 5454 | G28: 2154 | H28: 3019 | I28: 0.3787585722 | J28: 0.5535386872 | K28: -0.174780115
A29: CA-502 | B29: CA - Oakland, Berkeley /Alameda County CoC | C29: 668 | D29: 660 | E29: 1627 | F29: 1606 | G29: 524 | H29: 410 | I29: 0.3220651506 | J29: 0.2552926526 | K29: 0.06677249803
A30: CA-503 | B30: CA - Sacramento City & County CoC | C30: 507 | D30: 466 | E30: 1628 | F30: 1442 | G30: 1070 | H30: 1079 | I30: 0.6572481572 | J30: 0.7482662968 | K30: -0.09101813956
A31: CA-504 | B31: CA - Santa Rosa/Petaluma/Sonoma County CoC | C31: 699 | D31: 702 | E31: 478 | F31: 488 | G31: 249 | H31: 291 | I31: 0.5209205021 | J31: 0.5963114754 | K31: -0.07539097332
A32: CA-505 | B32: CA - Richmond/Contra Costa County CoC | C32: 346 | D32: 551 | E32: 473 | F32: 404 | G32: 207 | H32: 0 | I32: 0.4376321353 | J32: 0 | K32: 0.4376321353
A33: CA-506 | B33: CA - Salinas/Monterey, San Benito Counties CoC | C33: 631 | D33: 598 | E33: 257 | F33: 279 | G33: 0 | H33: 241 | I33: 0 | J33: 0.8637992832 | K33: -0.8637992832
A34: CA-507 | B34: CA - Marin County CoC | C34: 257 | D34: 263 | E34: 423 | F34: 404 | G34: 117 | H34: 93 | I34: 0.2765957447 | J34: 0.2301980198 | K34: 0.04639772488
A35: CA-508 | B35: CA - Watsonville/Santa Cruz City & County CoC | C35: 498 | D35: 512 | E35: 373 | F35: 377 | G35: 360 | H35: 396 | I35: 0.9651474531 | J35: 1.050397878 | K35: -0.0852504249
A36: CA-509 | B36: CA - Mendocino County CoC | C36: 177 | D36: 106 | E36: 137 | F36: 137 | G36: 0 | H36: 0 | I36: 0 | J36: 0 | K36: 0
A37: CA-510 | B37: CA - Turlock/Modesto/Stanislaus County CoC | C37: 238 | D37: 43 | E37: 290 | F37: 248 | G37: 149 | H37: 0 | I37: 0.5137931034 | J37: 0 | K37: 0.5137931034
A38: CA-511 | B38: CA - Stockton/San Joaquin County CoC | C38: 244 | D38: 271 | E38: 463 | F38: 437 | G38: 160 | H38: 211 | I38: 0.3455723542 | J38: 0.4828375286 | K38: -0.1372651744
A39: CA-512 | B39: CA - Daly/San Mateo County CoC | C39: 235 | D39: 313 | E39: 664 | F39: 532 | G39: 263 | H39: 270 | I39: 0.3960843373 | J39: 0.507518797 | K39: -0.1114344596
A40: CA-513 | B40: CA - Visalia, Kings, Tulare Counties CoC | C40: 241 | D40: 338 | E40: 120 | F40: 105 | G40: 52 | H40: 45 | I40: 0.4333333333 | J40: 0.4285714286 | K40: 0.004761904762
A41: CA-514 | B41: CA - Fresno/Madera County CoC | C41: 529 | D41: 366 | E41: 712 | F41: 692 | G41: 465 | H41: 521 | I41: 0.6530898876 | J41: 0.7528901734 | K41: -0.09980028577
A42: CA-515 | B42: CA - Roseville/Rocklin/Placer, Nevada Counties CoC | C42: 313 | D42: 290 | E42: 205 | F42: 166 | G42: 59 | H42: 57 | I42: 0.287804878 | J42: 0.343373494 | K42: -0.05556861593
A43: CA-516 | B43: CA - Redding/Shasta County CoC | C43: 394 | D43: 286 | E43: 44 | F43: 34 | G43: 34 | H43: 34 | I43: 0.7727272727 | J43: 1 | K43: -0.2272727273
A44: CA-517 | B44: CA - Napa City & County CoC | C44: 94 | D44: 125 | E44: 46 | F44: 46 | G44: 36 | H44: 40 | I44: 0.7826086957 | J44: 0.8695652174 | K44: -0.08695652174
A45: CA-518 | B45: CA - Vallejo/Solano County CoC | C45: 252 | D45: 223 | E45: 135 | F45: 86 | G45: 62 | H45: 62 | I45: 0.4592592593 | J45: 0.7209302326 | K45: -0.2616709733
A46: CA-519 | B46: CA - Chico/Paradise/Butte County CoC | C46: 238 | D46: 250 | E46: 120 | F46: 42 | G46: 0 | H46: 34 | I46: 0 | J46: 0.8095238095 | K46: -0.8095238095
A47: CA-520 | B47: CA - Merced City & County CoC | C47: 224 | D47: 221 | E47: 86 | F47: 51 | G47: 22 | H47: 14 | I47: 0.2558139535 | J47: 0.2745098039 | K47: -0.01869585043
A48: CA-521 | B48: CA - Davis/Woodland/Yolo County CoC | C48: 75 | D48: 82 | E48: 56 | F48: 75 | G48: 30 | H48: 67 | I48: 0.5357142857 | J48: 0.8933333333 | K48: -0.3576190476
A49: CA-522 | B49: CA - Humboldt County CoC | C49: 362 | D49: 372 | E49: 92 | F49: 68 | G49: 84 | H49: 89 | I49: 0.9130434783 | J49: 1.308823529 | K49: -0.3957800512
A50: CA-523* | B50: CA - Colusa, Glen, Lake, Tehama, Trinity Counties CoC | C50: 31 | D50: 32 | E50: 0 | F50: 0 | G50: 0 | H50: 0
A51: CA-524* | B51: CA - Yuba City, Marysville/Sutter, Yuba Counties CoC | C51: 70 | D51: 39 | E51: 0 | F51: 0 | G51: 0 | H51: 0
A52: CA-525* | B52: CA - El Dorado County CoC | C52: 95 | D52: 58 | E52: 0 | F52: 0 | G52: 0 | H52: 0
A53: CA-526 | B53: CA - Tuolumne, Calaveras, Amador, Mariposa Counties CoC | C53: 129 | D53: 98 | E53: 16 | F53: 21 | G53: 8 | H53: 6 | I53: 0.5 | J53: 0.2857142857 | K53: 0.2142857143
A54: CA-527* | B54: CA- Tehama County CoC | C54: 29 | D54: 30 | E54: 0 | F54: 0 | G54: 0 | H54: 0
A55: CA- 529* | B55: CA- Lake County CoC | C55: 12 | D55: 0 | E55: 0 | F55: 0 | G55: 0 | H55: 0
A56: CA-600 | B56: CA - Los Angeles City & County CoC | C56: 12970 | D56: 12356 | E56: 13782 | F56: 11447 | G56: 4369 | H56: 4364 | I56: 0.3170076912 | J56: 0.3812352581 | K56: -0.06422756695
A57: CA-601 | B57: CA - San Diego City and County CoC | C57: 1345 | D57: 1547 | E57: 2826 | F57: 2343 | G57: 494 | H57: 380 | I57: 0.1748053786 | J57: 0.1621852326 | K57: 0.01262014602
A58: CA-602 | B58: CA - Santa Ana/Anaheim/Orange County CoC | C58: 711 | D58: 558 | E58: 1456 | F58: 1429 | G58: 189 | H58: 195 | I58: 0.1298076923 | J58: 0.1364590623 | K58: -0.006651369974
A59: CA-603 | B59: CA - Santa Maria/Santa Barbara County CoC | C59: 426 | D59: 347 | E59: 429 | F59: 404 | G59: 162 | H59: 176 | I59: 0.3776223776 | J59: 0.4356435644 | K59: -0.05802118673
A60: CA-604 | B60: CA - Bakersfield/Kern County CoC | C60: 254 | D60: 161 | E60: 649 | F60: 708 | G60: 518 | H60: 525 | I60: 0.7981510015 | J60: 0.7415254237 | K60: 0.05662557781
A61: CA-606 | B61: CA - Long Beach CoC | C61: 800 | D61: 905 | E61: 929 | F61: 712 | G61: 260 | H61: 111 | I61: 0.2798708288 | J61: 0.1558988764 | K61: 0.1239719524
A62: CA-607 | B62: CA - Pasadena CoC | C62: 193 | D62: 183 | E62: 214 | F62: 177 | G62: 55 | H62: 44 | I62: 0.2570093458 | J62: 0.2485875706 | K62: 0.008421775173
A63: CA-608 | B63: CA - Riverside City & County CoC | C63: 369 | D63: 490 | E63: 879 | F63: 778 | G63: 759 | H63: 712 | I63: 0.8634812287 | J63: 0.9151670951 | K63: -0.05168586645
A64: CA-609 | B64: CA - San Bernardino City & County CoC | C64: 376 | D64: 498 | E64: 588 | F64: 603 | G64: 107 | H64: 282 | I64: 0.1819727891 | J64: 0.4676616915 | K64: -0.2856889024
A65: CA-611 | B65: CA - Oxnard/San Buenaventura/Ventura County CoC | C65: 296 | D65: 469 | E65: 376 | F65: 278 | G65: 129 | H65: 105 | I65: 0.3430851064 | J65: 0.3776978417 | K65: -0.03461273534
A66: CA-612 | B66: CA - Glendale CoC | C66: 95 | D66: 57 | E66: 82 | F66: 86 | G66: 60 | H66: 102 | I66: 0.7317073171 | J66: 1.186046512 | K66: -0.4543391946
A67: CA-613 | B67: CA - Imperial County CoC | C67: 60 | D67: 162 | E67: 0 | F67: 0 | G67: 0 | H67: 0 | I67: =G67/E67 ->  | J67: =H67/F67 ->  | K67: =I67-J67 -> 
A68: CA-614 | B68: CA - San Luis Obispo County CoC | C68: 388 | D68: 388 | E68: 188 | F68: 142 | G68: 47 | H68: 45 | I68: 0.25 | J68: 0.3169014085 | K68: -0.06690140845
A69: CA-615* | B69: Inyo, Mono, Alpine Counties CoC | C69: 31 | D69: 19 | E69: 0 | F69: 0 | G69: 0 | H69: 0
A70: CO | B70: CO - Colorado (state) | C70: =SUM(C71:C73) -> 1642 | D70: 1572 | E70: =SUM(E71:E73) -> 2886 | F70: 2481 | G70: =SUM(G71:G73) -> 870 | H70: 1394 | I70: 0.3014553015 | J70: 0.5618702136 | K70: -0.2604149122
A71: CO-500 | B71: CO - Colorado Balance of State CoC | C71: 571 | D71: 605 | E71: 522 | F71: 478 | G71: 161 | H71: 140 | I71: 0.3084291188 | J71: 0.2928870293 | K71: 0.01554208949
A72: CO-503 | B72: CO - Metropolitan Denver Homeless Initiative | C72: 716 | D72: 692 | E72: 2019 | F72: 1713 | G72: 564 | H72: 887 | I72: 0.279346211 | J72: 0.5178050204 | K72: -0.2384588094
A73: CO-504 | B73: CO - Colorado Springs/El Paso County CoC | C73: 355 | D73: 275 | E73: 345 | F73: 290 | G73: 145 | H73: 367 | I73: 0.4202898551 | J73: 1.265517241 | K73: -0.8452273863
A74: CT | B74: CT - Connecticut (state) | C74: =SUM(C75:C76) -> 439 | D74: 538 | E74: =SUM(E75:E76) -> 4468 | F74: 3872 | G74: =SUM(G75:G76) -> 2520 | H74: 2464 | I74: 0.5640107431 | J74: 0.6363636364 | K74: -0.0723528933
A75: CT-503 | B75: CT - Bridgeport/Stratford/Fairfield CoC | C75: 83 | D75: 116 | E75: 959 | F75: 850 | G75: 628 | H75: 625 | I75: 0.6548488008 | J75: 0.7352941176 | K75: -0.08044531681
A76: CT-505 | B76: CT - Connecticut Balance of State CoC | C76: 356 | D76: 364 | E76: 3509 | F76: 2453 | G76: 1892 | H76: 1352 | I76: 0.539184953 | J76: 0.5511618426 | K76: -0.01197688966
A77: DC-500 | B77: DC - District of Columbia CoC | C77: 1501 | D77: 1593 | E77: 3260 | F77: 2976 | G77: 3248 | H77: 5679 | I77: 0.9963190184 | J77: 1.908266129 | K77: -0.9119471106
A78: DE-500 | B78: DE - Delaware Statewide CoC | C78: 65 | D78: 64 | E78: 542 | F78: 664 | G78: 357 | H78: 248 | I78: 0.6586715867 | J78: 0.3734939759 | K78: 0.2851776108
A79: FL | B79: FL - Florida (state) | C79: =SUM(C80:C106) -> 5415 | D79: 6021 | E79: =SUM(E80:E106) -> 10053 | F79: 9672 | G79: =SUM(G80:G106) -> 4429 | H79: 5327 | I79: 0.4405650055 | J79: 0.5507650951 | K79: -0.1102000896
A80: FL-500 | B80: FL - Sarasota/Bradenton/Manatee, Sarasota Counties CoC | C80: 294 | D80: 215 | E80: 235 | F80: 158 | G80: 18 | H80: 225 | I80: 0.07659574468 | J80: 1.424050633 | K80: -1.347454888
A81: FL-501 | B81: FL - Tampa/Hillsborough County CoC | C81: 244 | D81: 303 | E81: 980 | F81: 941 | G81: 245 | H81: 247 | I81: 0.25 | J81: 0.2624867163 | K81: -0.01248671626
A82: FL-502 | B82: FL - St. Petersburg/Clearwater/Largo/Pinellas County CoC | C82: 603 | D82: 631 | E82: 674 | F82: 957 | G82: 212 | H82: 529 | I82: 0.3145400593 | J82: 0.55276907 | K82: -0.2382290107
A83: FL-503 | B83: FL - Lakeland, Winterhaven/Polk CoC | C83: 79 | D83: 87 | E83: 62 | F83: 60 | G83: 0 | H83: 40 | I83: 0 | J83: 0.6666666667 | K83: -0.6666666667
A84: FL-504 | B84: FL - Daytona Beach/Daytona/Volusia, Flagler Counties CoC | C84: 180 | D84: 246 | E84: 318 | F84: 262 | G84: 56 | H84: 64 | I84: 0.1761006289 | J84: 0.2442748092 | K84: -0.06817418023
A85: FL-505 | B85: FL - Fort Walton Beach/Okaloosa, Walton Counties CoC | C85: 267 | D85: 274 | E85: 0 | F85: 0 | G85: 0 | H85: 0
A86: FL-506 | B86: FL - Tallahassee/Leon County CoC | C86: 78 | D86: 129 | E86: 278 | F86: 263 | G86: 129 | H86: 128 | I86: 0.464028777 | J86: 0.4866920152 | K86: -0.02266323823
A87: FL-507 | B87: FL - Orlando/Orange, Osceola, Seminole Counties CoC | C87: 106 | D87: 172 | E87: 1363 | F87: 1361 | G87: 1339 | H87: 845 | I87: 0.9823917828 | J87: 0.6208670096 | K87: 0.3615247733
A88: FL-508 | B88: FL - Gainesville/Alachua, Putnam Counties CoC | C88: 253 | D88: 377 | E88: 463 | F88: 477 | G88: 0 | H88: 579 | I88: 0 | J88: 1.213836478 | K88: -1.213836478
A89: FL-509 | B89: FL - Fort Pierce/St. Lucie, Indian River, Martin Counties CoC | C89: 77 | D89: 110 | E89: 182 | F89: 173 | G89: 115 | H89: 173 | I89: 0.6318681319 | J89: 1 | K89: -0.3681318681
A90: FL-510 | B90: FL - Jacksonville-Duval, Clay Counties CoC | C90: 325 | D90: 327 | E90: 418 | F90: 385 | G90: 329 | H90: 199 | I90: 0.7870813397 | J90: 0.5168831169 | K90: 0.2701982228
A91: FL-511 | B91: FL - Pensacola/Escambia/Santa Rosa County CoC | C91: 189 | D91: 219 | E91: 323 | F91: 312 | G91: 0 | H91: 0 | I91: 0 | J91: 0 | K91: 0
A92: FL-512 | B92: FL - Saint Johns County CoC | C92: 35 | D92: 112 | E92: 6 | F92: 46 | G92: 0 | H92: 0 | I92: 0 | J92: 0 | K92: 0
A93: FL-513 | B93: FL - Palm Bay/Melbourne/Brevard County CoC | C93: 163 | D93: 148 | E93: 46 | F93: 20 | G93: 3 | H93: 32 | I93: 0.0652173913 | J93: 1.6 | K93: -1.534782609
A94: FL-514 | B94: FL - Ocala/Marion County CoC | C94: 65 | D94: 66 | E94: 45 | F94: 40 | G94: 5 | H94: 9 | I94: 0.1111111111 | J94: 0.225 | K94: -0.1138888889
A95: FL-515 | B95: FL - Panama City/Bay, Jackson Counties CoC | C95: 25 | D95: 25 | E95: 0 | F95: 0 | G95: 0 | H95: 0
A96: FL-517 | B96: FL - Hendry, Hardee, Highlands Counties CoC | C96: 323 | D96: 227 | E96: 17 | F96: 14 | G96: 6 | H96: 54 | I96: 0.3529411765 | J96: 3.857142857 | K96: -3.504201681
A97: FL-518 | B97: FL - Columbia, Hamilton, Lafayette, Suwannee Counties CoC | C97: 175 | D97: 170 | E97: 14 | F97: 14 | G97: 14 | H97: 27 | I97: 1 | J97: 1.928571429 | K97: -0.9285714286
A98: FL-519 | B98: FL - Pasco County CoC | C98: 267 | D98: 296 | E98: 97 | F98: 19 | G98: 3 | H98: 0 | I98: 0.03092783505 | J98: 0 | K98: 0.03092783505
A99: FL-520 | B99: FL - Citrus, Hernando, Lake, Sumter Counties CoC | C99: 28 | D99: 36 | E99: 32 | F99: 28 | G99: 18 | H99: 16 | I99: 0.5625 | J99: 0.5714285714 | K99: -0.008928571429
A100: FL-600 | B100: FL - Miami/Dade County CoC | C100: 435 | D100: 486 | E100: 2264 | F100: 2167 | G100: 1103 | H100: 1304 | I100: 0.4871908127 | J100: 0.6017535764 | K100: -0.1145627637
A101: FL-601 | B101: FL - Ft Lauderdale/Broward County CoC | C101: 400 | D101: 427 | E101: 1311 | F101: 1198 | G101: 521 | H101: 529 | I101: 0.3974065599 | J101: 0.4415692821 | K101: -0.04416272226
A102: FL-602 | B102: FL - Punta Gorda/Charlotte County CoC | C102: 71 | D102: 135 | E102: 105 | F102: 19 | G102: 20 | H102: 17 | I102: 0.1904761905 | J102: 0.8947368421 | K102: -0.7042606516
A103: FL-603 | B103: FL - Ft Myers/Cape Coral/Lee County CoC | C103: 82 | D103: 171 | E103: 107 | F103: 116 | G103: 9 | H103: 12 | I103: 0.08411214953 | J103: 0.1034482759 | K103: -0.01933612633
A104: FL-604 | B104: FL - Monroe County CoC | C104: 126 | D104: 148 | E104: 155 | F104: 165 | G104: 46 | H104: 40 | I104: 0.2967741935 | J104: 0.2424242424 | K104: 0.05434995112
A105: FL-605 | B105: FL - West Palm Beach/Palm Beach County CoC | C105: 452 | D105: 448 | E105: 534 | F105: 461 | G105: 238 | H105: 237 | I105: 0.4456928839 | J105: 0.5140997831 | K105: -0.06840689919
A106: FL-606 | B106: FL - Naples/Collier County CoC | C106: 73 | D106: 36 | E106: 24 | F106: 16 | G106: 0 | H106: 21 | I106: 0 | J106: 1.3125 | K106: -1.3125
A107: GA | B107: GA - Georgia (state) | C107: =SUM(C108:C116) -> 1658 | D107: 1994 | E107: =SUM(E108:E116) -> 5493 | F107: 5158 | G107: =SUM(G108:G116) -> 2532 | H107: 2725 | I107: 0.4609503004 | J107: 0.5283055448 | K107: -0.0673552444
A108: GA-500 | B108: GA - Atlanta Continuum of Care | C108: 531 | D108: 765 | E108: 1739 | F108: 1754 | G108: 1677 | H108: 875 | I108: 0.964347326 | J108: 0.4988597491 | K108: 0.4654875769
A109: GA-501 | B109: GA - Georgia Balance of State CoC | C109: 793 | D109: 844 | E109: 1549 | F109: 1413 | G109: 431 | H109: 450 | I109: 0.2782440284 | J109: 0.3184713376 | K109: -0.04022730917
A110: GA-502 | B110: GA - Fulton County Continuum of Care | C110: 9 | D110: 22 | E110: 197 | F110: 197 | G110: 197 | H110: 0 | I110: 1 | J110: 0 | K110: 1
A111: GA-503 | B111: GA - Athens/Clarke County CoC | C111: 49 | D111: 32 | E111: 139 | F111: 93 | G111: 45 | H111: 67 | I111: 0.3237410072 | J111: 0.7204301075 | K111: -0.3966891003
A112: GA-504 | B112: GA - Augusta-Richmond CoC | C112: 35 | D112: 34 | E112: 20 | F112: 21 | G112: 0 | H112: 0 | I112: 0 | J112: 0 | K112: 0
A113: GA-505 | B113: GA - Columbus-Muscogee/Russell County CoC | C113: 35 | D113: 59 | E113: 141 | F113: 141 | G113: 10 | H113: 0 | I113: 0.07092198582 | J113: 0 | K113: 0.07092198582
A114: GA-506 | B114: GA - Marietta/Cobb County CoC | C114: 36 | D114: 42 | E114: 203 | F114: 191 | G114: 49 | H114: 49 | I114: 0.2413793103 | J114: 0.2565445026 | K114: -0.01516519227
A115: GA-507 | B115: GA - Savannah/Chatham County CoC | C115: 149 | D115: 113 | E115: 248 | F115: 248 | G115: 44 | H115: 136 | I115: 0.1774193548 | J115: 0.5483870968 | K115: -0.3709677419
A116: GA-508 | B116: GA - DeKalb County Continuum of Care | C116: 21 | D116: 83 | E116: 1257 | F116: 1100 | G116: 79 | H116: 1148 | I116: 0.06284805091 | J116: 1.043636364 | K116: -0.9807883127
A117: GU-500 | B117: GU - Guam CoC | C117: 15 | D117: 765 | E117: 98 | F117: 77 | G117: 46 | H117: 62 | I117: 0.4693877551 | J117: 0.8051948052 | K117: -0.3358070501
A118: HI | B118: HI - Hawaii (state) | C118: =SUM(C119:C120) -> 1659 | D118: 1372 | E118: =SUM(E119:E120) -> 1695 | F118: 961 | G118: =SUM(G119:G120) -> 695 | H118: 573 | I118: 0.4100294985 | J118: 0.5962539022 | K118: -0.1862244037
A119: HI-500 | B119: HI - Hawaii Balance of State CoC | C119: 665 | D119: 593 | E119: 328 | F119: 280 | G119: 190 | H119: 228 | I119: 0.5792682927 | J119: 0.8142857143 | K119: -0.2350174216
A120: HI-501 | B120: HI - Honolulu CoC | C120: 994 | D120: 779 | E120: 1367 | F120: 681 | G120: 505 | H120: 345 | I120: 0.3694220922 | J120: 0.5066079295 | K120: -0.1371858373
A121: IA | B121: IA - Iowa (state) | C121: =SUM(C122:C124) -> 159 | D121: 95 | E121: =SUM(E122:E124) -> 638 | F121: 510 | G121: =SUM(G122:G124) -> 375 | H121: 154 | I121: 0.5877742947 | J121: 0.3019607843 | K121: 0.2858135104
A122: IA-500 | B122: IA - Sioux City/Dakota, Woodbury Counties CoC | C122: 13 | D122: 26 | E122: 44 | F122: 53 | G122: 38 | H122: 38 | I122: 0.8636363636 | J122: 0.7169811321 | K122: 0.1466552316
A123: IA-501 | B123: IA - Iowa Balance of State CoC | C123: 83 | D123: 69 | E123: 309 | F123: 211 | G123: 245 | H123: 42 | I123: 0.7928802589 | J123: 0.1990521327 | K123: 0.5938281262
A124: IA-502 | B124: IA - Des Moines/Polk County CoC | C124: 63 | D124: 106 | E124: 285 | F124: 246 | G124: 92 | H124: 74 | I124: 0.3228070175 | J124: 0.3008130081 | K124: 0.02199400941
A125: ID | B125: ID - Idaho (state) | C125: =SUM(C126:C127) -> 227 | D125: 164 | E125: =SUM(E126:E127) -> 461 | F125: 447 | G125: =SUM(G126:G127) -> 343 | H125: 303 | I125: 0.7440347072 | J125: 0.677852349 | K125: 0.06618235817
A126: ID-500 | B126: ID - Boise/Ada County CoC | C126: 120 | D126: 82 | E126: 230 | F126: 219 | G126: 230 | H126: 150 | I126: 1 | J126: 0.6849315068 | K126: 0.3150684932
A127: ID-501 | B127: ID - Idaho Balance of State | C127: 107 | D127: 82 | E127: 231 | F127: 228 | G127: 113 | H127: 153 | I127: 0.4891774892 | J127: 0.6710526316 | K127: -0.1818751424
A128: IL | B128: IL - Illinois (state) | C128: =SUM(C129:C148) -> 937 | D128: 1799 | E128: =SUM(E129:E148) -> 8358 | F128: 7744 | G128: =SUM(G129:G148) -> 2932 | H128: 3614 | I128: 0.3508016272 | J128: 0.4666838843 | K128: -0.1158822571
A129: IL-500 | B129: IL - McHenry County CoC | C129: 7 | D129: 6 | E129: 32 | F129: 28 | G129: 11 | H129: 15 | I129: 0.34375 | J129: 0.5357142857 | K129: -0.1919642857
A130: IL-501 | B130: IL - Rockford/Winnebago, Boone Counties CoC | C130: 47 | D130: 27 | E130: 186 | F130: 266 | G130: 105 | H130: 74 | I130: =G130/E130 -> 0.564516129 | J130: 0.2781954887 | K130: 0.2863206403
A131: IL-502 | B131: IL - Waukegan/North Chicago/Lake County CoC | C131: 16 | D131: 46 | E131: 288 | F131: 191 | G131: 128 | H131: 141 | I131: 0.4444444444 | J131: =H131/F131 -> 0.7382198953 | K131: =I131-J131 -> -0.2937754508
A132: IL-503 | B132: IL - Champaign/Urbana/Rantoul/Champaign County CoC | C132: 5 | D132: 5 | E132: 51 | F132: 51 | G132: 1 | H132: 25 | I132: 0.01960784314 | J132: 0.4901960784 | K132: -0.4705882353
A133: IL-504 | B133: IL - Madison County CoC | C133: 11 | D133: 12 | E133: 92 | F133: 82 | G133: 62 | H133: 46 | I133: 0.6739130435 | J133: 0.5609756098 | K133: 0.1129374337
A134: IL-506 | B134: IL - Joliet/Bolingbrook/Will County CoC | C134: 17 | D134: 40 | E134: 125 | F134: 135 | G134: 114 | H134: 166 | I134: 0.912 | J134: 1.22962963 | K134: -0.3176296296
A135: IL-507 | B135: IL - Peoria/Perkin/Fulton, Peoria, Tazewell, Woodford CoC | C135: 81 | D135: 68 | E135: 161 | F135: 160 | G135: 60 | H135: 65 | I135: 0.3726708075 | J135: 0.40625 | K135: -0.03357919255
A136: IL-508 | B136: IL - East Saint Louis/Belleville/Saint Clair County CoC | C136: 36 | D136: 94 | E136: 128 | F136: 139 | G136: 34 | H136: 34 | I136: 0.265625 | J136: 0.2446043165 | K136: 0.02102068345
A137: IL-509 | B137: IL - Dekalb City & County CoC | C137: 0 | D137: 0 | E137: 77 | F137: 85 | G137: 38 | H137: 38 | I137: 0.4935064935 | J137: 0.4470588235 | K137: 0.04644766998
A138: IL-510 | B138: IL - Chicago CoC | C138: 334 | D138: 1050 | E138: 5835 | F138: 5363 | G138: 1731 | H138: 2191 | I138: 0.2966580977 | J138: 0.4085399963 | K138: -0.1118818986
A139: IL-511 | B139: IL - Cook County CoC | C139: 125 | D139: 106 | E139: 762 | F139: 639 | G139: 374 | H139: 421 | I139: 0.4908136483 | J139: 0.6588419405 | K139: -0.1680282922
A140: IL-512 | B140: IL - Bloomington/Central Illinois CoC | C140: 58 | D140: 48 | E140: 71 | F140: 45 | G140: 3 | H140: 13 | I140: 0.04225352113 | J140: 0.2888888889 | K140: -0.2466353678
A141: IL-513 | B141: IL - Springfield/Sangamon County CoC | C141: 38 | D141: 30 | E141: 88 | F141: 90 | G141: 29 | H141: 36 | I141: 0.3295454545 | J141: 0.4 | K141: -0.07045454545
A142: IL-514 | B142: IL - DuPage County CoC | C142: 37 | D142: 54 | E142: 154 | F142: 146 | G142: 119 | H142: 185 | I142: 0.7727272727 | J142: 1.267123288 | K142: -0.4943960149
A143: IL-515 | B143: IL - South Central Illinois CoC | C143: 1 | D143: 7 | E143: 10 | F143: 9 | G143: 3 | H143: 0 | I143: 0.3 | J143: 0 | K143: 0.3
A144: IL-516 | B144: IL - Decatur/Macon County CoC | C144: 23 | D144: 67 | E144: 76 | F144: 57 | G144: 37 | H144: 30 | I144: 0.4868421053 | J144: 0.5263157895 | K144: -0.03947368421
A145: IL-517 | B145: IL - Aurora/Elgin/Kane County CoC | C145: 74 | D145: 84 | E145: 101 | F145: 112 | G145: 65 | H145: 81 | I145: 0.6435643564 | J145: 0.7232142857 | K145: -0.07964992928
A146: IL-518 | B146: IL - Rock Island/Moline/Northwestern Illinois CoC | C146: 0 | D146: 29 | E146: 51 | F146: 51 | G146: 0 | H146: 15 | I146: 0 | J146: 0.2941176471 | K146: -0.2941176471
A147: IL-519 | B147: IL - West Central Illinois CoC | C147: 3 | D147: 8 | E147: 2 | F147: 2 | G147: 0 | H147: 34 | I147: 0 | J147: 17 | K147: -17
A148: IL-520 | B148: IL - Southern Illinois CoC | C148: 24 | D148: 18 | E148: 68 | F148: 93 | G148: 18 | H148: 4 | I148: 0.2647058824 | J148: 0.04301075269 | K148: 0.2216951297
A149: IN | B149: IN - Indiana (state) | C149: =SUM(C150:C152) -> 534 | D149: 608 | E149: =SUM(E150:E152) -> 2327 | F149: 2037 | G149: =SUM(G150:G152) -> 571 | H149: 514 | I149: 0.245380318 | J149: 0.2523318606 | K149: -0.006951542573
A150: IN-500 | B150: IN - South Bend/Mishawaka/St. Joseph County CoC | C150: 49 | D150: 59 | E150: 201 | F150: 193 | G150: 29 | H150: 0 | I150: 0.144278607 | J150: 0 | K150: 0.144278607
A151: IN-502 | B151: IN - Indiana Balance of State CoC | C151: 357 | D151: 365 | E151: 1301 | F151: 1095 | G151: 320 | H151: 290 | I151: 0.2459646426 | J151: 0.2648401826 | K151: -0.01887554007
A152: IN-503 | B152: IN - Indianapolis CoC | C152: 128 | D152: 184 | E152: 825 | F152: 749 | G152: 222 | H152: 224 | I152: 0.2690909091 | J152: 0.2990654206 | K152: -0.02997451147
A153: KS | B153: KS - Kansas (state) | C153: =SUM(C154:C158) -> 233 | D153: 339 | E153: =SUM(E154:E158) -> 852 | F153: 903 | G153: =SUM(G154:G158) -> 232 | H153: 282 | I153: 0.2723004695 | J153: 0.3122923588 | K153: -0.03999188932
A154: KS-501 | B154: KS - Kansas City/Wyandotte County CoC | C154: 44 | D154: 41 | E154: 115 | F154: 97 | G154: 54 | H154: 14 | I154: 0.4695652174 | J154: 0.1443298969 | K154: 0.3252353205
A155: KS-502 | B155: KS - Wichita/Sedgwick County CoC | C155: 29 | D155: 92 | E155: 361 | F155: 370 | G155: 161 | H155: 245 | I155: 0.4459833795 | J155: 0.6621621622 | K155: -0.2161787827
A156: KS-503 | B156: KS - Topeka/Shawnee County CoC | C156: 94 | D156: 76 | E156: 251 | F156: 231 | G156: 0 | H156: 0 | I156: 0 | J156: 0 | K156: 0
A157: KS-505 | B157: KS - Overland Park/Shawnee/Johnson County CoC | C157: 0 | D157: 1 | E157: 26 | F157: 26 | G157: 2 | H157: 6 | I157: 0.07692307692 | J157: 0.2307692308 | K157: -0.1538461538
A158: KS-507 | B158: KS - Kansas Balance of State CoC | C158: 66 | D158: 129 | E158: 99 | F158: 179 | G158: 15 | H158: 17 | I158: 0.1515151515 | J158: 0.09497206704 | K158: 0.05654308448
A159: KY | B159: KY - Kentucky (state) | C159: =SUM(C160:C162) -> 353 | D159: 383 | E159: =SUM(E160:E162) -> 2012 | F159: 1919 | G159: =SUM(G160:G162) -> 642 | H159: 938 | I159: 0.3190854871 | J159: 0.488796248 | K159: -0.169710761
A160: KY-500 | B160: KY - Kentucky Balance of State CoC | C160: 79 | D160: 66 | E160: 559 | F160: 502 | G160: 19 | H160: 283 | I160: 0.03398926655 | J160: 0.5637450199 | K160: -0.5297557534
A161: KY-501 | B161: KY - Louisville/Jefferson County CoC | C161: 176 | D161: 118 | E161: 1131 | F161: 1082 | G161: 512 | H161: 655 | I161: 0.4526967286 | J161: 0.6053604436 | K161: -0.1526637151
A162: KY-502 | B162: KY - Lexington/Fayette County CoC | C162: 98 | D162: 199 | E162: 322 | F162: 335 | G162: 111 | H162: 0 | I162: 0.3447204969 | J162: 0 | K162: 0.3447204969
A163: LA | B163: LA - Louisiana (state) | C163: =SUM(C164:C172) -> 570 | D163: 735 | E163: =SUM(E164:E172) -> 3447 | F163: 3248 | G163: =SUM(G164:G172) -> 1616 | H163: 1900 | I163: 0.468813461 | J163: 0.5849753695 | K163: -0.1161619085
A164: LA-500 | B164: LA - Lafayette/Acadiana CoC | C164: 62 | D164: 66 | E164: 152 | F164: 105 | G164: 61 | H164: 68 | I164: 0.4013157895 | J164: 0.6476190476 | K164: -0.2463032581
A165: LA-502 | B165: LA - Shreveport/Bossier/Northwest CoC | C165: 17 | D165: 97 | E165: 319 | F165: 294 | G165: 214 | H165: 201 | I165: 0.670846395 | J165: 0.6836734694 | K165: -0.0128270744
A166: LA-503 | B166: LA - New Orleans/Jefferson Parish CoC | C166: 403 | D166: 414 | E166: 2139 | F166: 2095 | G166: 1122 | H166: 1220 | I166: 0.5245441795 | J166: 0.5823389021 | K166: -0.05779472262
A167: LA-504 | B167: LA - Baton Rouge CoC | C167: 46 | D167: 68 | E167: 300 | F167: 269 | G167: 0 | H167: 0 | I167: 0 | J167: 0 | K167: 0
A168: LA-505 | B168: LA - Monroe/Northeast Louisiana CoC | C168: 8 | D168: 19 | E168: 72 | F168: 60 | G168: 46 | H168: 67 | I168: 0.6388888889 | J168: 1.116666667 | K168: -0.4777777778
A169: LA-506 | B169: LA - Slidell/Southeast Louisiana CoC | C169: 24 | D169: 32 | E169: 185 | F169: 168 | G169: 39 | H169: 108 | I169: 0.2108108108 | J169: 0.6428571429 | K169: -0.432046332
A170: LA-507 | B170: LA - Alexandria/Central Louisiana CoC | C170: 7 | D170: 17 | E170: 134 | F170: 107 | G170: 134 | H170: 236 | I170: 1 | J170: 2.205607477 | K170: -1.205607477
A171: LA-508 | B171: LA - Houma-Terrebonne/Thibodaux CoC | C171: 3 | D171: 5 | E171: 98 | F171: 102 | G171: 0 | H171: 0 | I171: 0 | J171: 0 | K171: 0
A172: LA-509 | B172: Louisiana Balance of State | C172: 0 | D172: 17 | E172: 48 | F172: 48 | G172: 0 | H172: 0 | I172: 0 | J172: 0 | K172: 0
A173: MA | B173: MA - Massachusetts (state) | C173: =SUM(C174:C189) -> 1272 | D173: 1411 | E173: =SUM(E174:E189) -> 8166 | F173: 8002 | G173: =SUM(G174:G189) -> 4471 | H173: 4856 | I173: 0.5475140828 | J173: 0.6068482879 | K173: -0.05933420515
A174: MA-500 | B174: MA - Boston CoC | C174: 605 | D174: 635 | E174: 4088 | F174: 4087 | G174: 2834 | H174: 2958 | I174: 0.6932485323 | J174: 0.7237582579 | K174: -0.0305097256
A175: MA-502 | B175: MA - Lynn CoC | C175: 6 | D175: 10 | E175: 114 | F175: 195 | G175: 43 | H175: 85 | I175: 0.3771929825 | J175: 0.4358974359 | K175: -0.05870445344
A176: MA-503 | B176: MA - Cape Cod/Islands CoC | C176: 56 | D176: 48 | E176: 233 | F176: 228 | G176: 82 | H176: 83 | I176: 0.3519313305 | J176: 0.3640350877 | K176: -0.01210375725
A177: MA-504 | B177: MA - Springfield/Hampden County CoC | C177: 60 | D177: 69 | E177: 508 | F177: 452 | G177: 333 | H177: 321 | I177: 0.655511811 | J177: 0.7101769912 | K177: -0.05466518013
A178: MA-505 | B178: MA - New Bedford CoC | C178: 33 | D178: 37 | E178: 107 | F178: 109 | G178: 55 | H178: 183 | I178: 0.5140186916 | J178: 1.678899083 | K178: -1.164880391
A179: MA-506 | B179: MA - Worcester City & County CoC | C179: 41 | D179: 36 | E179: 563 | F179: 558 | G179: 185 | H179: 177 | I179: 0.3285968028 | J179: 0.3172043011 | K179: 0.01139250177
A180: MA-507 | B180: MA - Pittsfield/Berkshire County CoC | C180: 48 | D180: 78 | E180: 444 | F180: 381 | G180: 105 | H180: 78 | I180: 0.2364864865 | J180: 0.2047244094 | K180: 0.03176207704
A181: MA-508 | B181: MA - Lowell CoC | C181: 61 | D181: 71 | E181: 36 | F181: 36 | G181: 36 | H181: 28 | I181: 1 | J181: 0.7777777778 | K181: 0.2222222222
A182: MA-509 | B182: MA - Cambridge CoC | C182: 123 | D182: 97 | E182: 373 | F182: 457 | G182: 140 | H182: 146 | I182: 0.3753351206 | J182: 0.3194748359 | K182: 0.05586028476
A183: MA-510 | B183: MA - Gloucester/Haverhill/Salem/Essex County CoC | C183: 39 | D183: 121 | E183: 311 | F183: 296 | G183: 86 | H183: 127 | I183: 0.2765273312 | J183: 0.4290540541 | K183: -0.1525267229
A184: MA-511 | B184: MA - Quincy, Brockton, Weymouth, Plymouth City and County CoC | C184: 93 | D184: 115 | E184: 407 | F184: 400 | G184: 167 | H184: 199 | I184: 0.4103194103 | J184: 0.4975 | K184: -0.08718058968
A185: MA-515 | B185: MA - Fall River CoC | C185: 27 | D185: 34 | E185: 82 | F185: 82 | G185: 45 | H185: 58 | I185: 0.5487804878 | J185: 0.7073170732 | K185: -0.1585365854
A186: MA-516 | B186: MA - Massachusetts Balance of State (B0S) CoC | C186: 28 | D186: 15 | E186: 633 | F186: 440 | G186: 228 | H186: 212 | I186: 0.3601895735 | J186: 0.4818181818 | K186: -0.1216286084
A187: MA-517 | B187: MA - Somerville CoC | C187: 20 | D187: 11 | E187: 63 | F187: 69 | G187: 23 | H187: 29 | I187: 0.3650793651 | J187: 0.4202898551 | K187: -0.05521048999
A188: MA-518 | B188: MA - Brookline/Newton CoC | C188: 19 | D188: 17 | E188: 142 | F188: 150 | G188: 79 | H188: 148 | I188: 0.5563380282 | J188: 0.9866666667 | K188: -0.4303286385
A189: MA-519 | B189: MA - Attleboro/Taunton/Bristol County CoC | C189: 13 | D189: 17 | E189: 62 | F189: 62 | G189: 30 | H189: 24 | I189: 0.4838709677 | J189: 0.3870967742 | K189: 0.09677419355
A190: MD | B190: MD - Maryland (state) | C190: =SUM(C191:C206) -> 1277 | D190: 1634 | E190: =SUM(E191:E206) -> 4391 | F190: 3376 | G190: =SUM(G191:G206) -> 791 | H190: 763 | I190: 0.1801411979 | J190: 0.226007109 | K190: -0.0458659111
A191: MD-500 | B191: MD - Cumberland/Allegany County CoC | C191: 12 | D191: 11 | E191: 38 | F191: 38 | G191: 32 | H191: 8 | I191: 0.8421052632 | J191: 0.2105263158 | K191: 0.6315789474
A192: MD-501 | B192: MD - Baltimore City CoC | C192: 585 | D192: 541 | E192: 2543 | F192: 1633 | G192: 202 | H192: 165 | I192: 0.07943373968 | J192: 0.1010410288 | K192: -0.0216072891
A193: MD-502 | B193: MD - Harford County CoC | C193: 14 | D193: 45 | E193: 31 | F193: 31 | G193: 18 | H193: 0 | I193: 0.5806451613 | J193: 0 | K193: 0.5806451613
A194: MD-503 | B194: MD - Annapolis/Anne Arundel County CoC | C194: 65 | D194: 71 | E194: 108 | F194: 107 | G194: 87 | H194: 77 | I194: =G194/E194 -> 0.8055555556 | J194: 0.7196261682 | K194: 0.08592938733
A195: MD-504 | B195: MD - Howard County CoC | C195: 28 | D195: 28 | E195: 49 | F195: 46 | G195: 35 | H195: 30 | I195: 0.7142857143 | J195: =H195/F195 -> 0.652173913 | K195: =I195-J195 -> 0.06211180124
A196: MD-505 | B196: MD - Baltimore County CoC | C196: 87 | D196: 164 | E196: 256 | F196: 236 | G196: 58 | H196: 91 | I196: 0.2265625 | J196: 0.3855932203 | K196: -0.1590307203
A197: MD-506 | B197: MD - Carroll County CoC | C197: 10 | D197: 25 | E197: 15 | F197: 24 | G197: 13 | H197: 20 | I197: 0.8666666667 | J197: 0.8333333333 | K197: 0.03333333333
A198: MD-507 | B198: MD - Cecil County CoC | C198: 22 | D198: 29 | E198: 108 | F198: 98 | G198: 8 | H198: 12 | I198: 0.07407407407 | J198: 0.1224489796 | K198: -0.04837490552
A199: MD-508 | B199: MD - Charles, Calvert, St.Mary's Counties CoC | C199: 73 | D199: 330 | E199: 118 | F199: 78 | G199: 51 | H199: 24 | I199: 0.4322033898 | J199: 0.3076923077 | K199: 0.1245110821
A200: MD-509 | B200: MD - Frederick City & County CoC | C200: 133 | D200: 89 | E200: 35 | F200: 40 | G200: 0 | H200: 0 | I200: 0 | J200: 0 | K200: 0
... 250 more rows
